[Event "*** Titled Tuesday Blitz"]
[Site "Chess.com"]
[Date "2019.04.02"]
[Round "6"]
[White "hellokostya"]
[Black "fu24"]
[Result "1/2-1/2"]
[WhiteElo "2500"]
[BlackElo "2515"]
[TimeControl "180+2"]
[EndTime "15:22:07 PDT"]
[Termination "Game drawn - insufficient material"]

1. d4 {[%clk 0:03:01.9]} 1... e6 {[%clk 0:03:01.9]} 2. c4 {[%clk 0:02:54.9]}
2... f5 {[%clk 0:02:59.4]} 3. g3 {[%clk 0:02:43.4]} 3... Nf6 {[%clk 0:03:00.9]}
4. Bg2 {[%clk 0:02:44]} 4... Be7 {[%clk 0:03:02.4]} 5. Nc3 {[%clk 0:02:44.6]}
5... O-O {[%clk 0:03:04.3]} 6. Nf3 {[%clk 0:02:45.1]} 6... d6 {[%clk 0:03:05.3]}
7. O-O {[%clk 0:02:46.6]} 7... Ne4 {[%clk 0:03:03.6]} 8. Rb1 {[%clk 0:02:40.4]}
8... Bf6 {[%clk 0:03:02.3]} 9. Qd3 {[%clk 0:02:38.8]} 9... Nxc3 {[%clk
0:02:59.8]} 10. bxc3 {[%clk 0:02:40.7]} 10... Qe7 {[%clk 0:02:39.9]} 11. Re1
{[%clk 0:02:37.8]} 11... e5 {[%clk 0:02:13.1]} 12. e4 {[%clk 0:02:36.7]} 12...
Nc6 {[%clk 0:02:14.1]} 13. exf5 {[%clk 0:02:33.7]} 13... e4 {[%clk 0:02:00.9]}
14. Rxe4 {[%clk 0:01:41.8]} 14... Bxf5 {[%clk 0:02:01]} 15. Nd2 {[%clk
0:01:42.9]} 15... Rab8 {[%clk 0:01:33.5]} 16. Rxe7 {[%clk 0:01:28]} 16... Bxd3
{[%clk 0:01:34.1]} 17. Rxc7 {[%clk 0:01:29.2]} 17... Bxb1 {[%clk 0:01:35.1]} 18.
Nxb1 {[%clk 0:01:31.1]} 18... Na5 {[%clk 0:01:27.7]} 19. Bf4 {[%clk 0:01:23.4]}
19... Rfd8 {[%clk 0:01:21.1]} 20. Nd2 {[%clk 0:01:17.4]} 20... Rbc8 {[%clk
0:01:05.9]} 21. Rxc8 {[%clk 0:00:49.9]} 21... Rxc8 {[%clk 0:01:07.8]} 22. Bxd6
{[%clk 0:00:50.7]} 22... g6 {[%clk 0:00:54.9]} 23. c5 {[%clk 0:00:42]} 23... b6
{[%clk 0:00:40.3]} 24. Nb3 {[%clk 0:00:41.8]} 24... Nxb3 {[%clk 0:00:36.3]} 25.
axb3 {[%clk 0:00:43.7]} 25... Kg7 {[%clk 0:00:13.5]} 26. b4 {[%clk 0:00:35.8]}
26... bxc5 {[%clk 0:00:07.1]} 27. Bxc5 {[%clk 0:00:34.3]} 27... Rc7 {[%clk
0:00:08.6]} 28. Kf1 {[%clk 0:00:32.1]} 28... Be7 {[%clk 0:00:09.9]} 29. Ke2
{[%clk 0:00:23.3]} 29... Bxc5 {[%clk 0:00:10.8]} 30. dxc5 {[%clk 0:00:24.6]}
30... Kf6 {[%clk 0:00:12.7]} 31. Kd3 {[%clk 0:00:25.5]} 31... Ke5 {[%clk
0:00:14.6]} 32. Kc4 {[%clk 0:00:25.7]} 32... Rf7 {[%clk 0:00:09.7]} 33. f4+
{[%clk 0:00:26.8]} 33... Kf6 {[%clk 0:00:10]} 34. b5 {[%clk 0:00:27.2]} 34...
Ke7 {[%clk 0:00:07.9]} 35. b6 {[%clk 0:00:28.1]} 35... axb6 {[%clk 0:00:09.4]}
36. cxb6 {[%clk 0:00:30]} 36... Kd6 {[%clk 0:00:11]} 37. Kb5 {[%clk 0:00:30.2]}
37... Rf5+ {[%clk 0:00:05.4]} 38. Ka6 {[%clk 0:00:30.8]} 38... Rc5 {[%clk
0:00:06.1]} 39. b7 {[%clk 0:00:23.2]} 39... Kc7 {[%clk 0:00:06.9]} 40. Be4
{[%clk 0:00:07.7]} 40... Rxc3 {[%clk 0:00:07.8]} 41. Kb5 {[%clk 0:00:09]} 41...
Re3 {[%clk 0:00:06.8]} 42. Bd5 {[%clk 0:00:09.4]} 42... Rd3 {[%clk 0:00:07.5]}
43. Kc4 {[%clk 0:00:09.1]} 43... Rd2 {[%clk 0:00:08.5]} 44. h4 {[%clk
0:00:09.7]} 44... Rb2 {[%clk 0:00:09.7]} 45. Kd4 {[%clk 0:00:10.4]} 45... Kd6
{[%clk 0:00:11.2]} 46. Be4 {[%clk 0:00:10.4]} 46... Ke6 {[%clk 0:00:11.9]} 47.
Kc5 {[%clk 0:00:08.4]} 47... Kd7 {[%clk 0:00:12.9]} 48. Kd4 {[%clk 0:00:07.7]}
48... Kd6 {[%clk 0:00:13.7]} 49. Bd5 {[%clk 0:00:05.9]} 49... Rb4+ {[%clk
0:00:14.7]} 50. Kc3 {[%clk 0:00:06.5]} 50... Rb6 {[%clk 0:00:14.6]} 51. Bf3
{[%clk 0:00:07.3]} 51... Kc5 {[%clk 0:00:15.8]} 52. Kd3 {[%clk 0:00:07.6]} 52...
Kd6 {[%clk 0:00:16.9]} 53. Ke4 {[%clk 0:00:08.4]} 53... Rb4+ {[%clk 0:00:18]}
54. Ke3 {[%clk 0:00:09.3]} 54... Rb3+ {[%clk 0:00:19.2]} 55. Ke4 {[%clk
0:00:10.4]} 55... Ke6 {[%clk 0:00:20.1]} 56. Kd4 {[%clk 0:00:10.4]} 56... Kd6
{[%clk 0:00:20.2]} 57. Kc4 {[%clk 0:00:11.1]} 57... Rb1 {[%clk 0:00:20.4]} 58.
Kd4 {[%clk 0:00:09.8]} 58... Rb4+ {[%clk 0:00:21.2]} 59. Kc3 {[%clk 0:00:10.6]}
59... Rb1 {[%clk 0:00:22.1]} 60. Be4 {[%clk 0:00:11.8]} 60... Rb6 {[%clk
0:00:22.4]} 61. Kd4 {[%clk 0:00:12.8]} 61... Rb2 {[%clk 0:00:21.3]} 62. Kc3
{[%clk 0:00:14.1]} 62... Rb5 {[%clk 0:00:20]} 63. Kc4 {[%clk 0:00:14.9]} 63...
Rc5+ {[%clk 0:00:21.2]} 64. Kd4 {[%clk 0:00:15.6]} 64... Rb5 {[%clk 0:00:22.7]}
65. h5 {[%clk 0:00:17.1]} 65... gxh5 {[%clk 0:00:18.6]} 66. Bf3 {[%clk
0:00:15.2]} 66... Ke6 {[%clk 0:00:18.9]} 67. Kc4 {[%clk 0:00:15.4]} 67... Rb1
{[%clk 0:00:19.7]} 68. Kc5 {[%clk 0:00:16.6]} 68... Kf6 {[%clk 0:00:21]} 69. Kc6
{[%clk 0:00:17.6]} 69... h4 {[%clk 0:00:21.9]} 70. gxh4 {[%clk 0:00:16.7]} 70...
Kf5 {[%clk 0:00:23.4]} 71. Kc7 {[%clk 0:00:16.7]} 71... Kxf4 {[%clk 0:00:25]}
72. Bc6 {[%clk 0:00:14.9]} 72... h5 {[%clk 0:00:25.9]} 73. b8=Q {[%clk
0:00:15.1]} 73... Rxb8 {[%clk 0:00:27.4]} 74. Kxb8 {[%clk 0:00:16.1]} 74... Kg4
{[%clk 0:00:29.3]} 75. Be8 {[%clk 0:00:16.6]} 75... Kxh4 {[%clk 0:00:31.2]} 76.
Bxh5 {[%clk 0:00:18.2]} 1/2-1/2

[Event "*** Titled Tuesday Blitz"]
[Site "Chess.com"]
[Date "2019.04.02"]
[Round "6"]
[White "BlackBoarder"]
[Black "DenisQ"]
[Result "0-1"]
[WhiteElo "2525"]
[BlackElo "2643"]
[TimeControl "180+2"]
[EndTime "15:22:11 PDT"]
[Termination "DenisQ won by resignation"]

1. e4 {[%clk 0:03:00.7]} 1... c6 {[%clk 0:02:59.1]} 2. Nf3 {[%clk 0:02:58.8]}
2... d5 {[%clk 0:02:59.4]} 3. Nc3 {[%clk 0:03:00.4]} 3... Bg4 {[%clk 0:02:59]}
4. h3 {[%clk 0:03:01.5]} 4... Bh5 {[%clk 0:03:00]} 5. exd5 {[%clk 0:03:02.5]}
5... cxd5 {[%clk 0:03:00.2]} 6. Bb5+ {[%clk 0:03:03.9]} 6... Nc6 {[%clk
0:03:00.4]} 7. g4 {[%clk 0:03:05.4]} 7... Bg6 {[%clk 0:03:01.4]} 8. Ne5 {[%clk
0:03:07]} 8... Rc8 {[%clk 0:03:01.5]} 9. d4 {[%clk 0:03:08.1]} 9... e6 {[%clk
0:03:02.1]} 10. h4 {[%clk 0:03:08.7]} 10... f6 {[%clk 0:03:02.4]} 11. Nxg6
{[%clk 0:03:09.3]} 11... hxg6 {[%clk 0:03:04.3]} 12. Qd3 {[%clk 0:03:04.5]}
12... Kf7 {[%clk 0:03:04.6]} 13. h5 {[%clk 0:03:05.5]} 13... gxh5 {[%clk
0:03:05.3]} 14. Bxc6 {[%clk 0:03:06.2]} 14... Rxc6 {[%clk 0:03:03.5]} 15. Rxh5
{[%clk 0:03:05]} 15... Rxh5 {[%clk 0:03:02.1]} 16. gxh5 {[%clk 0:03:06.9]} 16...
Ne7 {[%clk 0:02:57.3]} 17. Be3 {[%clk 0:03:03.6]} 17... Nf5 {[%clk 0:02:57.7]}
18. O-O-O {[%clk 0:03:02.6]} 18... Bd6 {[%clk 0:02:46.6]} 19. Kb1 {[%clk
0:03:01.7]} 19... Qd7 {[%clk 0:02:22.6]} 20. Ne2 {[%clk 0:03:00.4]} 20... Rc8
{[%clk 0:02:22.3]} 21. Bf4 {[%clk 0:02:53.3]} 21... Rh8 {[%clk 0:02:15.4]} 22.
Qf3 {[%clk 0:02:48.3]} 22... Be7 {[%clk 0:01:49.5]} 23. Ng3 {[%clk 0:02:41.1]}
23... Nxg3 {[%clk 0:01:41.6]} 24. fxg3 {[%clk 0:02:23.8]} 24... Bd6 {[%clk
0:01:40.9]} 25. Qg4 {[%clk 0:02:17]} 25... Bxf4 {[%clk 0:01:37.2]} 26. gxf4
{[%clk 0:02:18]} 26... Rh6 {[%clk 0:01:29.5]} 27. a3 {[%clk 0:01:46.7]} 27... f5
{[%clk 0:01:26.5]} 28. Qf3 {[%clk 0:01:38.3]} 28... Kg8 {[%clk 0:01:26.3]} 29.
Rg1 {[%clk 0:01:34.4]} 29... Kh7 {[%clk 0:01:20.9]} 30. Rg5 {[%clk 0:01:28.6]}
30... b5 {[%clk 0:01:15]} 31. Qc3 {[%clk 0:01:04.2]} 31... Qf7 {[%clk
0:01:09.6]} 32. Qf3 {[%clk 0:00:48]} 32... a5 {[%clk 0:01:09.8]} 33. b3 {[%clk
0:00:43.2]} 33... Qc7 {[%clk 0:01:01.6]} 34. Kb2 {[%clk 0:00:38.2]} 34... b4
{[%clk 0:00:59.4]} 35. Qd3 {[%clk 0:00:34.7]} 35... Qxf4 {[%clk 0:00:57.2]} 36.
Rg1 {[%clk 0:00:18.4]} 36... Rxh5 {[%clk 0:00:57.7]} 37. axb4 {[%clk 0:00:18.3]}
37... axb4 {[%clk 0:00:57.7]} 38. Re1 {[%clk 0:00:19.7]} 38... Rh4 {[%clk
0:00:55.4]} 39. Qa6 {[%clk 0:00:08.7]} 39... Qxd4+ {[%clk 0:00:54.9]} 40. Kb1
{[%clk 0:00:10.2]} 40... Re4 {[%clk 0:00:45.7]} 41. Rh1+ {[%clk 0:00:09.3]}
41... Kg6 {[%clk 0:00:46.8]} 42. Qc8 {[%clk 0:00:06]} 42... Qf6 {[%clk
0:00:30.2]} 43. Qe8+ {[%clk 0:00:03.7]} 43... Qf7 {[%clk 0:00:25.4]} 44. Qh8
{[%clk 0:00:05]} 44... Kf6 {[%clk 0:00:24.8]} 45. Qd8+ {[%clk 0:00:05.6]} 45...
Qe7 {[%clk 0:00:25.6]} 46. Qh8 {[%clk 0:00:05.9]} 46... Rg4 {[%clk 0:00:19.4]}
47. Rh6+ {[%clk 0:00:06.6]} 47... Kf7 {[%clk 0:00:17.9]} 48. Rh1 {[%clk
0:00:08.2]} 48... Qg5 {[%clk 0:00:18.2]} 49. Kb2 {[%clk 0:00:03.4]} 49... Rg1
{[%clk 0:00:17.4]} 50. Rxg1 {[%clk 0:00:03]} 50... Qxg1 {[%clk 0:00:18]} 51. Qh4
{[%clk 0:00:03.1]} 51... Qc5 {[%clk 0:00:17.1]} 52. Qh5+ {[%clk 0:00:04.4]}
52... Kf6 {[%clk 0:00:18.3]} 53. Qh4+ {[%clk 0:00:05.1]} 53... Kg6 {[%clk
0:00:19.5]} 54. Qg3+ {[%clk 0:00:06.1]} 54... Kf7 {[%clk 0:00:20.8]} 55. Qf4
{[%clk 0:00:04.4]} 55... Qc3+ {[%clk 0:00:20.1]} 56. Kb1 {[%clk 0:00:04.8]}
56... Kf6 {[%clk 0:00:21.5]} 57. Qh4+ {[%clk 0:00:05.6]} 57... Kf7 {[%clk
0:00:21.9]} 58. Qh5+ {[%clk 0:00:06.7]} 58... Ke7 {[%clk 0:00:23]} 59. Qg5+
{[%clk 0:00:06]} 59... Kd7 {[%clk 0:00:24.2]} 60. Qg6 {[%clk 0:00:06]} 60... Qf6
{[%clk 0:00:22.5]} 61. Qg3 {[%clk 0:00:05.3]} 61... f4 {[%clk 0:00:23.4]} 62.
Qd3 {[%clk 0:00:05.3]} 62... f3 {[%clk 0:00:23.8]} 63. Qb5+ {[%clk 0:00:06.5]}
63... Kc7 {[%clk 0:00:22.6]} 64. Qc5+ {[%clk 0:00:06.3]} 64... Kd8 {[%clk
0:00:23.8]} 65. Qd6+ {[%clk 0:00:03.3]} 65... Ke8 {[%clk 0:00:24.8]} 66. Qb8+
{[%clk 0:00:03.3]} 66... Kf7 {[%clk 0:00:26]} 67. Qc7+ {[%clk 0:00:04]} 67...
Kg8 {[%clk 0:00:26.9]} 68. Qb8+ {[%clk 0:00:05.2]} 68... Qf8 {[%clk 0:00:27.4]}
69. Qd6 {[%clk 0:00:05.6]} 69... Qxd6 {[%clk 0:00:27.8]} 0-1

[Event "*** Titled Tuesday Blitz"]
[Site "Chess.com"]
[Date "2019.04.02"]
[Round "6"]
[White "europa2012"]
[Black "Martins-BR"]
[Result "1/2-1/2"]
[WhiteElo "2114"]
[BlackElo "2239"]
[TimeControl "180+2"]
[EndTime "15:22:13 PDT"]
[Termination "Game drawn - timeout vs insufficient material"]

1. d4 {[%clk 0:03:01.9]} 1... f5 {[%clk 0:02:59.4]} 2. Nc3 {[%clk 0:03:02.1]}
2... d5 {[%clk 0:02:59.1]} 3. Bf4 {[%clk 0:02:57.8]} 3... a6 {[%clk 0:02:58.7]}
4. Nf3 {[%clk 0:02:56]} 4... Nf6 {[%clk 0:02:59.5]} 5. e3 {[%clk 0:02:56.8]}
5... e6 {[%clk 0:03:00.5]} 6. Bd3 {[%clk 0:02:57.8]} 6... Bd6 {[%clk 0:03:01.1]}
7. Ne5 {[%clk 0:02:58.2]} 7... O-O {[%clk 0:03:00.7]} 8. O-O {[%clk 0:02:56.7]}
8... c5 {[%clk 0:03:00.1]} 9. dxc5 {[%clk 0:02:51.4]} 9... Bxc5 {[%clk
0:02:59.5]} 10. h3 {[%clk 0:02:47.2]} 10... Nc6 {[%clk 0:02:56.1]} 11. Nxc6
{[%clk 0:02:46]} 11... bxc6 {[%clk 0:02:56.2]} 12. Ne2 {[%clk 0:02:46.1]} 12...
Bd6 {[%clk 0:02:54.1]} 13. Bxd6 {[%clk 0:02:38.8]} 13... Qxd6 {[%clk 0:02:54.1]}
14. c4 {[%clk 0:02:40.4]} 14... Rb8 {[%clk 0:02:52.7]} 15. b3 {[%clk 0:02:40.3]}
15... Ne4 {[%clk 0:02:46.5]} 16. Bxe4 {[%clk 0:02:38.2]} 16... fxe4 {[%clk
0:02:46.4]} 17. Ng3 {[%clk 0:02:38]} 17... Qe5 {[%clk 0:02:30.5]} 18. Qe2 {[%clk
0:02:24.4]} 18... a5 {[%clk 0:02:22.9]} 19. Rad1 {[%clk 0:02:15.6]} 19... Ba6
{[%clk 0:02:21.3]} 20. Qg4 {[%clk 0:02:12]} 20... Rf7 {[%clk 0:02:09.7]} 21.
Rfe1 {[%clk 0:02:06.6]} 21... dxc4 {[%clk 0:02:04.5]} 22. bxc4 {[%clk
0:01:59.1]} 22... Bxc4 {[%clk 0:02:03.7]} 23. Qxe4 {[%clk 0:01:55.2]} 23... Qxe4
{[%clk 0:02:00.2]} 24. Nxe4 {[%clk 0:01:55.8]} 24... Bxa2 {[%clk 0:02:00]} 25.
Ra1 {[%clk 0:01:48.9]} 25... Rb2 {[%clk 0:01:58.5]} 26. f3 {[%clk 0:01:40.2]}
26... Rd7 {[%clk 0:01:30.7]} 27. Red1 {[%clk 0:01:29.4]} 27... Rxd1+ {[%clk
0:01:30.4]} 28. Rxd1 {[%clk 0:01:30.3]} 28... Rb1 {[%clk 0:01:31.2]} 29. Rxb1
{[%clk 0:01:27.5]} 29... Bxb1 {[%clk 0:01:33.1]} 30. Nc3 {[%clk 0:01:29]} 30...
Bd3 {[%clk 0:01:29.1]} 31. Kf2 {[%clk 0:01:29.2]} 31... Kf7 {[%clk 0:01:24.3]}
32. e4 {[%clk 0:01:29.8]} 32... e5 {[%clk 0:01:20.7]} 33. g3 {[%clk 0:01:29.3]}
33... g5 {[%clk 0:01:19.9]} 34. Ke3 {[%clk 0:01:28.8]} 34... Bf1 {[%clk
0:01:19.8]} 35. h4 {[%clk 0:01:27.6]} 35... gxh4 {[%clk 0:01:16.2]} 36. gxh4
{[%clk 0:01:29.5]} 36... Kf6 {[%clk 0:01:12.5]} 37. f4 {[%clk 0:01:30.3]} 37...
Bb5 {[%clk 0:01:05.5]} 38. f5 {[%clk 0:01:20.6]} 38... a4 {[%clk 0:00:51.7]} 39.
Kd2 {[%clk 0:01:20]} 39... a3 {[%clk 0:00:50.1]} 40. Kc2 {[%clk 0:01:21]} 40...
Bc4 {[%clk 0:00:49.4]} 41. Na4 {[%clk 0:01:13.7]} 41... Kg7 {[%clk 0:00:38.1]}
42. Kc3 {[%clk 0:01:12.1]} 42... Bf7 {[%clk 0:00:31.5]} 43. Nc5 {[%clk
0:01:06.5]} 43... Kh6 {[%clk 0:00:24.4]} 44. Nd7 {[%clk 0:00:57.7]} 44... Kh5
{[%clk 0:00:21.3]} 45. Nxe5 {[%clk 0:00:58.5]} 45... Bg8 {[%clk 0:00:19.8]} 46.
f6 {[%clk 0:00:58]} 46... Kxh4 {[%clk 0:00:11.4]} 47. f7 {[%clk 0:00:56.2]}
47... Bxf7 {[%clk 0:00:06.7]} 48. Nxf7 {[%clk 0:00:58.1]} 48... c5 {[%clk
0:00:03.7]} 49. e5 {[%clk 0:00:57.5]} 49... Kh5 {[%clk 0:00:03.4]} 50. e6 {[%clk
0:00:18.3]} 50... Kg6 {[%clk 0:00:04.4]} 51. Ng5 {[%clk 0:00:08.3]} 51... Kf6
{[%clk 0:00:05.3]} 52. Kb3 {[%clk 0:00:04.9]} 52... h6 {[%clk 0:00:03.2]} 53.
Ne4+ {[%clk 0:00:05.5]} 53... Kxe6 {[%clk 0:00:04.3]} 54. Nxc5+ {[%clk
0:00:07.1]} 54... Kf5 {[%clk 0:00:05.4]} 55. Kxa3 {[%clk 0:00:07.7]} 55... h5
{[%clk 0:00:06.5]} 56. Nd3 {[%clk 0:00:09.1]} 56... Ke4 {[%clk 0:00:06.5]} 57.
Nf2+ {[%clk 0:00:10.2]} 57... Kf3 {[%clk 0:00:07.6]} 58. Nh3 {[%clk 0:00:10.2]}
58... Kg3 {[%clk 0:00:06.5]} 59. Ng5 {[%clk 0:00:09.5]} 59... h4 {[%clk
0:00:07.3]} 60. Kb4 {[%clk 0:00:09.8]} 60... Kg4 {[%clk 0:00:08.4]} 61. Ne4
{[%clk 0:00:10.3]} 61... Kf4 {[%clk 0:00:09.5]} 62. Nf2 {[%clk 0:00:10.3]} 62...
Kg3 {[%clk 0:00:10.5]} 63. Ne4+ {[%clk 0:00:11.4]} 63... Kf3 {[%clk 0:00:11.6]}
64. Ng5+ {[%clk 0:00:12.6]} 64... Kg4 {[%clk 0:00:12.3]} 65. Ne4 {[%clk
0:00:14.2]} 1/2-1/2

[Event "*** Titled Tuesday Blitz"]
[Site "Chess.com"]
[Date "2019.04.02"]
[Round "6"]
[White "dreamist"]
[Black "Zhuu96"]
[Result "1-0"]
[WhiteElo "2733"]
[BlackElo "2955"]
[TimeControl "180+2"]
[EndTime "15:22:25 PDT"]
[Termination "dreamist won by resignation"]

1. e4 {[%clk 0:03:01]} 1... c5 {[%clk 0:03:00.4]} 2. Nf3 {[%clk 0:03:01.9]} 2...
d6 {[%clk 0:03:00.7]} 3. d4 {[%clk 0:03:01.9]} 3... cxd4 {[%clk 0:03:02]} 4.
Nxd4 {[%clk 0:03:03.8]} 4... Nf6 {[%clk 0:03:03.4]} 5. Nc3 {[%clk 0:03:04.6]}
5... a6 {[%clk 0:03:05.1]} 6. Bg5 {[%clk 0:03:04.7]} 6... Nbd7 {[%clk
0:03:05.4]} 7. Qe2 {[%clk 0:03:05.1]} 7... Qa5 {[%clk 0:03:05.3]} 8. f4 {[%clk
0:02:57.7]} 8... h6 {[%clk 0:03:05.3]} 9. Bh4 {[%clk 0:02:54.5]} 9... g5 {[%clk
0:03:06.3]} 10. fxg5 {[%clk 0:02:52.1]} 10... hxg5 {[%clk 0:03:06.9]} 11. Nb3
{[%clk 0:02:49]} 11... Qe5 {[%clk 0:02:31.7]} 12. Bg3 {[%clk 0:02:49.4]} 12...
Qe6 {[%clk 0:02:31.9]} 13. O-O-O {[%clk 0:02:34.7]} 13... Ne5 {[%clk 0:02:28.4]}
14. Nd4 {[%clk 0:02:23.7]} 14... Qg4 {[%clk 0:02:28.4]} 15. Qe3 {[%clk
0:02:09.8]} 15... Qd7 {[%clk 0:01:57.8]} 16. Kb1 {[%clk 0:02:06.5]} 16... Neg4
{[%clk 0:01:54.6]} 17. Qe1 {[%clk 0:02:00.5]} 17... Qc7 {[%clk 0:01:50.8]} 18.
Nf3 {[%clk 0:01:44.8]} 18... Bg7 {[%clk 0:01:38.1]} 19. e5 {[%clk 0:01:42.1]}
19... dxe5 {[%clk 0:01:33.2]} 20. Nxe5 {[%clk 0:01:41.4]} 20... Nxe5 {[%clk
0:01:33.8]} 21. Bxe5 {[%clk 0:01:42]} 21... Qc6 {[%clk 0:01:34]} 22. Qg3 {[%clk
0:01:20]} 22... Bf5 {[%clk 0:01:23.2]} 23. Qxg5 {[%clk 0:01:17.8]} 23... Bg6
{[%clk 0:01:24.1]} 24. Bd3 {[%clk 0:01:16.2]} 24... Rh5 {[%clk 0:01:21.4]} 25.
Qg3 {[%clk 0:01:11.7]} 25... Bxd3 {[%clk 0:01:08.3]} 26. Rxd3 {[%clk 0:01:13.6]}
26... Kf8 {[%clk 0:01:03.4]} 27. Nd5 {[%clk 0:01:09.7]} 27... Rc8 {[%clk
0:00:57.2]} 28. Rc3 {[%clk 0:01:09.2]} 28... Qe6 {[%clk 0:00:53.7]} 29. Rxc8+
{[%clk 0:01:09.2]} 29... Qxc8 {[%clk 0:00:53.7]} 30. Nxf6 {[%clk 0:01:01.7]}
30... exf6 {[%clk 0:00:52.3]} 31. Bc3 {[%clk 0:00:56.3]} 31... Rg5 {[%clk
0:00:52.6]} 32. Qd6+ {[%clk 0:00:55.7]} 32... Kg8 {[%clk 0:00:53.2]} 33. g3
{[%clk 0:00:53.6]} 33... Qh3 {[%clk 0:00:43.3]} 34. Qb8+ {[%clk 0:00:47.1]}
34... Kh7 {[%clk 0:00:44.1]} 35. Qxb7 {[%clk 0:00:48.5]} 35... Rf5 {[%clk
0:00:44]} 36. a3 {[%clk 0:00:44.9]} 36... Rf1+ {[%clk 0:00:37.7]} 37. Rxf1
{[%clk 0:00:43.9]} 37... Qxf1+ {[%clk 0:00:39.2]} 38. Ka2 {[%clk 0:00:45.5]}
38... Qc4+ {[%clk 0:00:40.6]} 39. Qb3 {[%clk 0:00:45.7]} 39... Qc7 {[%clk
0:00:41.5]} 40. Qd5 {[%clk 0:00:45.1]} 40... Qe7 {[%clk 0:00:37.9]} 41. Qd3+
{[%clk 0:00:41.8]} 41... Kg8 {[%clk 0:00:38.9]} 42. Qxa6 {[%clk 0:00:43.2]}
42... Qe4 {[%clk 0:00:40.3]} 43. Qb5 {[%clk 0:00:42.1]} 43... Qxc2 {[%clk
0:00:40]} 44. a4 {[%clk 0:00:42.8]} 44... Qxh2 {[%clk 0:00:34.2]} 45. a5 {[%clk
0:00:36]} 45... Qxg3 {[%clk 0:00:35]} 46. a6 {[%clk 0:00:37]} 46... Qe3 {[%clk
0:00:35.9]} 47. Qb8+ {[%clk 0:00:34.9]} 47... Kh7 {[%clk 0:00:36.2]} 48. a7
{[%clk 0:00:31.2]} 48... Qe6+ {[%clk 0:00:37.3]} 49. Qb3 {[%clk 0:00:32]} 49...
Qa6+ {[%clk 0:00:38.3]} 50. Qa3 {[%clk 0:00:26.4]} 50... Qc4+ {[%clk 0:00:39.4]}
51. b3 {[%clk 0:00:25.8]} 51... Qxc3 {[%clk 0:00:38.3]} 52. a8=Q {[%clk
0:00:24.2]} 52... f5 {[%clk 0:00:39.7]} 53. Qh1+ {[%clk 0:00:24.8]} 53... Kg6
{[%clk 0:00:41]} 54. Qg1+ {[%clk 0:00:25.1]} 54... Kh7 {[%clk 0:00:41]} 55. Qgc1
{[%clk 0:00:25.2]} 55... Qd3 {[%clk 0:00:39.5]} 56. b4 {[%clk 0:00:18.3]} 56...
Qe2+ {[%clk 0:00:40.2]} 57. Kb1 {[%clk 0:00:17.4]} 57... Qe4+ {[%clk 0:00:41.2]}
58. Qc2 {[%clk 0:00:17.6]} 58... Qe1+ {[%clk 0:00:42.2]} 59. Qac1 {[%clk
0:00:18.5]} 59... Qxb4+ {[%clk 0:00:43]} 60. Ka2 {[%clk 0:00:17.9]} 60... Qa5+
{[%clk 0:00:43.3]} 61. Qa3 {[%clk 0:00:19]} 61... Qd5+ {[%clk 0:00:44.4]} 62.
Qab3 {[%clk 0:00:19.7]} 62... Qa5+ {[%clk 0:00:45]} 63. Qa4 {[%clk 0:00:20.9]}
63... Qd5+ {[%clk 0:00:46]} 64. Qac4 {[%clk 0:00:20.6]} 64... Qa5+ {[%clk
0:00:45.3]} 65. Kb3 {[%clk 0:00:21.3]} 65... Qb6+ {[%clk 0:00:46.3]} 66. Qb4
{[%clk 0:00:22.2]} 66... Qe3+ {[%clk 0:00:45.5]} 67. Ka4 {[%clk 0:00:22.9]}
67... Qa7+ {[%clk 0:00:46.5]} 68. Qa5 {[%clk 0:00:21.6]} 68... Qd7+ {[%clk
0:00:47.3]} 69. Qb5 {[%clk 0:00:21.9]} 69... Qa7+ {[%clk 0:00:48.4]} 70. Kb3
{[%clk 0:00:21.2]} 70... Qe3+ {[%clk 0:00:49.3]} 71. Kb4 {[%clk 0:00:21.5]}
71... Bf8+ {[%clk 0:00:45.5]} 72. Kc4 {[%clk 0:00:18]} 72... Qf4+ {[%clk
0:00:46]} 73. Kb3 {[%clk 0:00:17.6]} 73... Qe3+ {[%clk 0:00:46.9]} 74. Qcd3
{[%clk 0:00:18.1]} 74... Qe6+ {[%clk 0:00:47.6]} 75. Qbd5 {[%clk 0:00:17.6]}
75... Qb6+ {[%clk 0:00:48.6]} 76. Kc2 {[%clk 0:00:18.1]} 76... Qf2+ {[%clk
0:00:50.2]} 77. Qd2 {[%clk 0:00:18.1]} 77... Qf1 {[%clk 0:00:51.5]} 78. Qh2+
{[%clk 0:00:17.9]} 78... Kg8 {[%clk 0:00:49.4]} 79. Qhg2+ {[%clk 0:00:17.9]} 1-0